fUST/lending_fUST_20250429
["ID","MTS","AMOUNT","RATE_DAILY","PERIOD"]
[359333165,1745933444934,-500.0,0.00035616,3]
[359333166,1745933444943,-1124.33,0.00035616,3]
[359333167,1745933444951,-972.71961003,0.00035616,3]
[359333279,1745933445982,-8169.3230815,0.00035215,2]
[359333282,1745933445995,-14749.9999995,0.00035215,2]
[359333284,1745933446007,-1052.421253,0.00035215,2]
[359333335,1745933946560,-220.93177949,0.00025205,2]
[359333337,1745933993505,-200.0,0.00035616,60]
[359333338,1745933995810,-200.0,0.00035616,60]
[359333339,1745933997352,-200.0,0.00035616,60]
[359333340,1745934004397,-200.0,0.00035616,60]
[359333341,1745934007170,-200.0,0.00035616,60]
[359333342,1745934011589,-200.0,0.0003589,60]
[359333348,1745934211220,-200.0,0.0003589,60]
[359333349,1745934238861,-200.0,0.0003589,60]
[359333399,1745934632124,-355.16904429,0.00025205,2]
[359333401,1745934632133,-163.048207,0.00027397,2]
[359333403,1745934632143,-199.89525401,0.000279,2]
[359333405,1745934632153,-1000.0,0.000279,2]
[359333407,1745934632162,-152.0,0.00030897,2]
[359333408,1745934632171,-202.60984502,0.000309,9]
[359333410,1745934632183,-160.0,0.00031132,2]
[359333422,1745934632401,-202.60984483,0.00031285,9]
[359333423,1745934632412,-731.0,0.00031299,3]
[359333424,1745934632423,-400.0,0.000313,3]
[359333425,1745934632432,-400.0,0.000313,2]
[359333426,1745934632443,-7356.9147317,0.00031301,2]
[359333427,1745934632453,-202.60984483,0.00031669,10]
[359333428,1745934632463,-192.1785835,0.0003194,2]
[359333429,1745934632472,-5000.0,0.00032,7]
[359333430,1745934632482,-5000.0,0.00032,10]
[359333431,1745934632492,-202.60984483,0.00032054,10]
[359333432,1745934632501,-202.60984483,0.00032438,10]
[359333433,1745934632510,-202.60984483,0.00032823,10]
[359333434,1745934632520,-202.60984483,0.00033208,11]
[359333435,1745934632529,-202.60984483,0.00033592,11]
[359333436,1745934632538,-560.0,0.00033689,3]
[359333437,1745934632547,-392.0,0.00033689,2]
[359333438,1745934632556,-541.7711302,0.00033835,4]
[359333439,1745934632566,-202.60984483,0.00033977,11]
[359333440,1745934632575,-202.60984483,0.00034362,11]
[359333441,1745934632585,-202.60984483,0.00034746,12]
[359333442,1745934632594,-262.74752053,0.00035096,2]
[359333443,1745934632604,-202.60984483,0.00035131,12]
[359333444,1745934632613,-176.08,0.00035205,3]
[359333445,1745934632622,-528.28,0.00035205,3]
[359333446,1745934632632,-10935.02776,0.00035205,2]
[359333447,1745934632641,-100171.87671919,0.00035215,2]
[359333448,1745934632843,-686.44903997,0.00035215,2]
[359333487,1745934638070,-895.10319183,0.00035215,2]
[359333500,1745934638183,-434.81370448,0.00035215,2]
[359333502,1745934638194,-2632.55469546,0.00035215,2]
[359333508,1745934638242,-9085.46302672,0.00035215,2]
[359333511,1745934638252,-202.37996058,0.00035506,2]
[359333514,1745934638261,-262.74752053,0.00035506,2]
[359333517,1745934638272,-202.37996055,0.00035509,2]
[359333519,1745934638282,-202.37996055,0.00035511,2]
[359333521,1745934638292,-202.37996055,0.00035514,2]
[359333523,1745934638302,-202.60984483,0.00035515,12]
[359333525,1745934638311,-202.37996055,0.00035516,2]
[359333527,1745934638321,-476.02,0.000356,2]
[359333528,1745934638331,-634.0,0.000356,2]
[359333529,1745934638340,-2682.63263463,0.00035605,2]
[359333530,1745934638350,-5401.47813,0.00035605,3]
[359333531,1745934638359,-10935.02776,0.00035606,3]
[359333533,1745934638369,-153090.388639,0.00035606,3]
[359333535,1745934638378,-843.3486784,0.00035606,3]
[359333536,1745934638388,-500.0,0.00035616,14]
[359333538,1745934638397,-151.0,0.00035616,14]
[359333541,1745934638408,-151.0,0.00035616,14]
[359333542,1745934638419,-151.0,0.00035616,14]
[359333545,1745934638428,-151.0,0.00035616,14]
[359333546,1745934638438,-151.0,0.00035616,14]
[359333548,1745934638447,-151.0,0.00035616,14]
[359333549,1745934638457,-157.038152,0.00035616,14]
[359333550,1745934638466,-400.0,0.00035616,3]
[359333551,1745934638476,-353.03221882,0.00035616,3]
[359333552,1745934638485,-207.6080909,0.00035616,3]
[359333553,1745934638495,-480.40275492,0.00035616,3]
[359333554,1745934638504,-164.04186504,0.00035616,3]
[359333555,1745934638514,-433.44626683,0.00035616,3]
[359333556,1745934638523,-500.0,0.00035616,3]
[359333557,1745934638533,-500.0,0.00035616,3]
[359333558,1745934638542,-500.0,0.00035616,3]
[359333559,1745934638552,-500.0,0.00035616,3]
[359333560,1745934638562,-500.0,0.00035616,3]
[359333561,1745934638572,-500.0,0.00035616,3]
[359333562,1745934638582,-335.77616446,0.00035616,3]
[359333563,1745934638591,-151.0,0.00035616,14]
[359333564,1745934638601,-151.0,0.00035616,14]
[359333565,1745934638611,-151.0,0.00035616,14]
[359333566,1745934638621,-400.0,0.00035616,3]
[359333567,1745934638631,-500.0,0.00035616,3]
[359333568,1745934638641,-400.0,0.00035616,3]
[359333569,1745934638652,-500.0,0.00035616,3]
[359333570,1745934638662,-400.0,0.00035616,3]
[359333571,1745934638671,-400.0,0.00035616,3]
[359333572,1745934638682,-400.0,0.00035616,3]
[359333573,1745934638691,-400.0,0.00035616,3]
[359333574,1745934638701,-400.0,0.00035616,3]
[359333575,1745934638711,-400.0,0.00035616,3]
[359333576,1745934638721,-506.08208493,0.00035616,3]
[359333577,1745934638730,-400.0,0.00035616,3]
[359333578,1745934638741,-400.0,0.00035616,3]
[359333579,1745934638750,-400.0,0.00035616,3]
[359333580,1745934638760,-500.0,0.00035616,3]
[359333581,1745934638770,-400.0,0.00035616,3]
[359333582,1745934638780,-151.0,0.00035616,14]
[359333583,1745934638789,-400.0,0.00035616,3]
[359333584,1745934638798,-400.0,0.00035616,3]
[359333585,1745934638807,-400.0,0.00035616,3]
[359333586,1745934638816,-400.0,0.00035616,3]
[359333587,1745934638826,-400.0,0.00035616,3]
[359333588,1745934638836,-400.0,0.00035616,3]
[359333589,1745934638845,-400.0,0.00035616,3]
[359333590,1745934638855,-400.0,0.00035616,3]
[359333591,1745934638865,-400.0,0.00035616,3]
[359333592,1745934638875,-400.0,0.00035616,3]
[359333593,1745934638885,-151.0,0.00035616,14]
[359333594,1745934638894,-151.0,0.00035616,14]
[359333595,1745934638906,-151.0,0.00035616,14]
[359333596,1745934638915,-151.0,0.00035616,14]
[359333597,1745934638925,-151.0,0.00035616,14]
[359333598,1745934638934,-151.0,0.00035616,14]
[359333599,1745934638944,-400.0,0.00035616,3]
[359333600,1745934638954,-400.0,0.00035616,3]
[359333601,1745934638964,-151.0,0.00035616,14]
[359333602,1745934638973,-151.0,0.00035616,14]
[359333603,1745934638983,-151.0,0.00035616,14]
[359333604,1745934638992,-151.0,0.00035616,14]
[359333605,1745934639002,-151.0,0.00035616,14]
[359333606,1745934639011,-151.0,0.00035616,14]
[359333607,1745934639021,-151.0,0.00035616,14]
[359333608,1745934639031,-178.030166,0.00035616,14]
[359333609,1745934639041,-504.16894908,0.00035616,3]
[359333610,1745934639050,-510.99737348,0.00035616,3]
[359333611,1745934639060,-400.0,0.00035616,3]
[359333612,1745934639069,-501.99575659,0.00035616,3]
[359333613,1745934639079,-484.97,0.00035616,3]
[359333614,1745934639088,-502.74692449,0.00035616,3]
[359333615,1745934639099,-400.0,0.00035616,3]
[359333616,1745934639112,-151.0,0.00035616,14]
[359333617,1745934639122,-151.0,0.00035616,14]
[359333618,1745934639131,-400.0,0.00035616,3]
[359333619,1745934639142,-500.0,0.00035616,3]
[359333620,1745934639154,-151.0,0.00035616,14]
[359333621,1745934639163,-151.0,0.00035616,14]
[359333622,1745934639172,-151.0,0.00035616,14]
[359333623,1745934639182,-151.0,0.00035616,14]
[359333624,1745934639192,-151.0,0.00035616,14]
[359333625,1745934639202,-151.0,0.00035616,14]
[359333626,1745934639211,-151.0,0.00035616,14]
[359333627,1745934639221,-164.019739,0.00035616,14]
[359333628,1745934639230,-400.0,0.00035616,3]
[359333629,1745934639239,-400.0,0.00035616,3]
[359333630,1745934639249,-151.0,0.00035616,14]
[359333631,1745934639258,-400.0,0.00035616,3]
[359333632,1745934639268,-152.086999,0.00035616,14]
[359333633,1745934639277,-500.0,0.00035616,3]
[359333634,1745934639287,-500.0,0.00035616,3]
[359333635,1745934639296,-400.0,0.00035616,3]
[359333636,1745934639305,-500.0,0.00035616,3]
[359333637,1745934639315,-400.0,0.00035616,3]
[359333638,1745934639324,-500.0,0.00035616,3]
[359333639,1745934639333,-400.0,0.00035616,3]
[359333640,1745934639343,-400.0,0.00035616,3]
[359333641,1745934639352,-158.283503,0.00035616,14]
[359333642,1745934639362,-400.0,0.00035616,3]
[359333643,1745934639371,-501.19874312,0.00035616,3]
[359333644,1745934639381,-400.0,0.00035616,3]
[359333645,1745934639390,-462.74,0.00035616,3]
[359333646,1745934639400,-400.0,0.00035616,3]
[359333647,1745934639411,-400.0,0.00035616,3]
[359333648,1745934639421,-151.0,0.00035616,14]
[359333649,1745934639430,-151.0,0.00035616,14]
[359333650,1745934639440,-151.0,0.00035616,14]
[359333651,1745934639451,-163.765784,0.00035616,14]
[359333652,1745934639460,-400.0,0.00035616,3]
[359333653,1745934639470,-500.0,0.00035616,3]
[359333654,1745934639479,-281.67320382,0.00035616,3]
[359333655,1745934639489,-400.0,0.00035616,2]
[359333656,1745934639498,-200.83534951,0.00035616,3]
[359333657,1745934639507,-500.0,0.00035616,3]
[359333658,1745934639517,-400.0,0.00035616,3]
[359333659,1745934639526,-500.0,0.00035616,3]
[359333660,1745934639535,-522.34,0.00035616,3]
[359333661,1745934639545,-501.34447408,0.00035616,3]
[359333662,1745934639554,-151.0,0.00035616,14]
[359333663,1745934639563,-400.0,0.00035616,3]
[359333664,1745934639573,-500.0,0.00035616,3]
[359333665,1745934639583,-400.0,0.00035616,3]
[359333666,1745934639592,-500.0,0.00035616,3]
[359333667,1745934639602,-400.0,0.00035616,3]
[359333668,1745934639611,-169.9160807,0.00035616,3]
[359333669,1745934639621,-500.0,0.00035616,3]
[359333670,1745934639631,-500.0,0.00035616,3]
[359333671,1745934639640,-400.0,0.00035616,3]
[359333672,1745934639649,-500.0,0.00035616,3]
[359333673,1745934639659,-400.0,0.00035616,3]
[359333674,1745934639671,-500.0,0.00035616,3]
[359333675,1745934639681,-1248.5,0.00035616,3]
[359333676,1745934639690,-151.0,0.00035616,14]
[359333677,1745934639699,-151.0,0.00035616,14]
[359333678,1745934639709,-151.0,0.00035616,14]
[359333679,1745934639718,-170.50875,0.00035616,14]
[359333680,1745934639727,-400.0,0.00035616,3]
[359333682,1745934639736,-400.0,0.00035616,3]
[359333684,1745934639746,-151.0,0.00035616,14]
[359333686,1745934639755,-400.0,0.00035616,3]
[359333688,1745934639765,-200.0,0.00035616,3]
[359333689,1745934639775,-518.68389446,0.00035616,3]
[359333690,1745934639784,-400.0,0.00035616,3]
[359333691,1745934639793,-400.0,0.00035616,3]
[359333692,1745934639803,-400.0,0.00035616,3]
[359333693,1745934639812,-400.0,0.00035616,3]
[359333694,1745934639822,-151.0,0.00035616,14]
[359333695,1745934639831,-151.0,0.00035616,14]
[359333696,1745934639842,-500.0,0.00035616,3]
[359333697,1745934639851,-3689.17,0.00035616,3]
[359333698,1745934639861,-400.0,0.00035616,3]
[359333699,1745934639871,-500.0,0.00035616,3]
[359333700,1745934639880,-501.78727598,0.00035616,3]
[359333701,1745934639888,-400.0,0.00035616,3]
[359333703,1745934639898,-400.0,0.00035616,3]
[359333705,1745934639909,-400.0,0.00035616,3]
[359333707,1745934639919,-400.0,0.00035616,3]
[359333709,1745934639928,-400.0,0.00035616,3]
[359333711,1745934639937,-400.0,0.00035616,3]
[359333713,1745934639947,-500.0,0.00035616,3]
[359333715,1745934639956,-400.0,0.00035616,3]
[359333717,1745934639965,-500.0,0.00035616,3]
[359333719,1745934639975,-400.0,0.00035616,3]
[359333721,1745934639984,-206.49959532,0.00035616,3]
[359333723,1745934639994,-500.0,0.00035616,3]
[359333725,1745934640003,-500.0,0.00035616,3]
[359333727,1745934640012,-500.0,0.00035616,3]
[359333729,1745934640022,-400.0,0.00035616,3]
[359333731,1745934640031,-503.75151858,0.00035616,3]
[359333733,1745934640040,-735.86,0.00035616,3]
[359333735,1745934640050,-500.0,0.00035616,3]
[359333737,1745934640059,-400.0,0.00035616,3]
[359333739,1745934640068,-400.0,0.00035616,3]
[359333741,1745934640077,-500.0,0.00035616,3]
[359333743,1745934640087,-400.0,0.00035616,3]
[359333745,1745934640096,-500.0,0.00035616,3]
[359333747,1745934640108,-500.0,0.00035616,3]
[359333749,1745934640117,-1442.93,0.00035616,3]
[359333751,1745934640126,-506.98434479,0.00035616,3]
[359333753,1745934640135,-536.71112375,0.00035616,3]
[359333755,1745934640146,-500.0,0.00035616,3]
[359333757,1745934640156,-400.0,0.00035616,3]
[359333759,1745934640165,-500.0,0.00035616,3]
[359333761,1745934640174,-505.06186109,0.00035616,3]
[359333763,1745934640184,-183.34237573,0.00035616,3]
[359333765,1745934640194,-500.0,0.00035616,3]
[359333767,1745934640203,-500.0,0.00035616,3]
[359333769,1745934640213,-400.0,0.00035616,3]
[359333771,1745934640223,-400.0,0.00035616,3]
[359333773,1745934640233,-500.0,0.00035616,3]
[359333775,1745934640242,-400.0,0.00035616,3]
[359333777,1745934640252,-500.0,0.00035616,3]
[359333779,1745934640261,-500.0,0.00035616,3]
[359333781,1745934640270,-500.0,0.00035616,3]
[359333783,1745934640279,-400.0,0.00035616,3]
[359333785,1745934640288,-500.0,0.00035616,3]
[359333787,1745934640298,-500.0,0.00035616,3]
[359333789,1745934640307,-500.0,0.00035616,3]
[359333791,1745934640316,-500.0,0.00035616,3]
[359333793,1745934640325,-500.0,0.00035616,3]
[359333795,1745934640334,-1151.28,0.00035616,3]
[359333797,1745934640344,-500.0,0.00035616,3]
[359333799,1745934640353,-500.0,0.00035616,3]
[359333801,1745934640363,-500.0,0.00035616,3]
[359333803,1745934640372,-500.0,0.00035616,3]
[359333805,1745934640381,-500.0,0.00035616,3]
[359333807,1745934640390,-500.0,0.00035616,3]
[359333809,1745934640399,-500.0,0.00035616,3]
[359333811,1745934640410,-500.0,0.00035616,3]
[359333813,1745934640420,-500.0,0.00035616,3]
[359333815,1745934640429,-500.0,0.00035616,3]
[359333817,1745934640439,-1055.88,0.00035616,3]
[359333819,1745934640448,-400.0,0.00035616,3]
[359333821,1745934640458,-500.0,0.00035616,3]
[359333823,1745934640467,-500.0,0.00035616,3]
[359333825,1745934640476,-500.0,0.00035616,3]
[359333827,1745934640485,-500.0,0.00035616,3]
[359333829,1745934640494,-500.0,0.00035616,3]
[359333831,1745934640504,-503.577723,0.00035616,3]
[359333833,1745934640513,-500.0,0.00035616,3]
[359333835,1745934640522,-500.0,0.00035616,3]
[359333837,1745934640531,-877.4,0.00035616,3]
[359333839,1745934640540,-500.0,0.00035616,3]
[359333840,1745934640550,-331.40739042,0.00035616,3]
[359333843,1745934640560,-500.0,0.00035616,3]
[359333844,1745934640569,-1291.21,0.00035616,3]
[359333846,1745934640578,-500.0,0.00035616,3]
[359333848,1745934640587,-500.0,0.00035616,3]
[359333850,1745934640597,-500.0,0.00035616,3]
[359333852,1745934640605,-500.47142295,0.00035616,3]
[359333854,1745934640615,-510.37,0.00035616,3]
[359333856,1745934640624,-400.0,0.00035616,3]
[359333878,1745934640633,-500.0,0.00035616,3]
[359333880,1745934640828,-500.0,0.00035616,3]
[359333882,1745934640837,-400.0,0.00035616,3]
[359333884,1745934640846,-500.0,0.00035616,3]
[359333886,1745934640856,-400.0,0.00035616,3]
[359333888,1745934640864,-507.68178201,0.00035616,3]
[359333890,1745934640873,-400.0,0.00035616,3]
[359333892,1745934640882,-400.0,0.00035616,3]
[359333894,1745934640892,-400.0,0.00035616,3]
[359333896,1745934640901,-503.58232279,0.00035616,3]
[359333898,1745934640911,-521.92,0.00035616,3]
[359333900,1745934640921,-500.0,0.00035616,3]
[359333902,1745934640930,-400.0,0.00035616,3]
[359333904,1745934640939,-400.0,0.00035616,3]
[359333906,1745934640948,-415.59327419,0.00035616,3]
[359333908,1745934640957,-500.0,0.00035616,3]
[359333910,1745934640967,-500.0,0.00035616,3]
[359333912,1745934640976,-400.0,0.00035616,3]
[359333914,1745934640985,-429.32,0.00035616,3]
[359333916,1745934640994,-500.0,0.00035616,3]
[359333918,1745934641003,-400.0,0.00035616,3]
[359333920,1745934641012,-400.0,0.00035616,3]
[359333922,1745934641021,-151.0,0.00035616,14]
[359333924,1745934641031,-169.110681,0.00035616,14]
[359333926,1745934641040,-502.31225403,0.00035616,3]
[359333928,1745934641049,-400.0,0.00035616,3]
[359333930,1745934641058,-500.0,0.00035616,3]
[359333932,1745934641067,-500.0,0.00035616,3]
[359333934,1745934641076,-400.0,0.00035616,3]
[359333936,1745934641085,-500.0,0.00035616,3]
[359333938,1745934641094,-517.09123797,0.00035616,3]
[359333940,1745934641104,-513.6034958,0.00035616,3]
[359333941,1745934641114,-500.0,0.00035616,3]
[359333943,1745934641123,-500.0,0.00035616,3]
[359333944,1745934641133,-500.0,0.00035616,3]
[359333946,1745934641141,-963.27,0.00035616,3]
[359333948,1745934641151,-400.0,0.00035616,3]
[359333950,1745934641160,-500.0,0.00035616,3]
[359333952,1745934641170,-444.26673282,0.00035616,3]
[359333954,1745934641180,-400.0,0.00035616,3]
[359333956,1745934641190,-500.0,0.00035616,3]
[359333958,1745934641199,-400.0,0.00035616,3]
[359333960,1745934641208,-400.0,0.00035616,3]
[359333962,1745934641218,-500.04595272,0.00035616,3]
[359333964,1745934641227,-500.0,0.00035616,3]
[359333966,1745934641236,-400.0,0.00035616,3]
[359333968,1745934641245,-500.76749215,0.00035616,3]
[359333970,1745934641255,-400.0,0.00035616,3]
[359333971,1745934641264,-518.38791413,0.00035616,3]
[359333974,1745934641273,-500.0,0.00035616,3]
[359333975,1745934641283,-400.0,0.00035616,3]
[359333977,1745934641292,-1338.66,0.00035616,3]
[359333979,1745934641301,-501.42678093,0.00035616,3]
[359333981,1745934641310,-500.0,0.00035616,3]
[359333983,1745934641319,-500.73751405,0.00035616,3]
[359333985,1745934641329,-500.0,0.00035616,3]
[359333987,1745934641338,-400.0,0.00035616,3]
[359333989,1745934641348,-500.0,0.00035616,3]
[359333991,1745934641357,-151.0,0.00035616,14]
[359333994,1745934641368,-500.0,0.00035616,3]
[359333996,1745934641378,-1176.04,0.00035616,3]
[359333997,1745934641387,-437.27,0.00035616,3]
[359333999,1745934641396,-400.0,0.00035616,3]
[359334001,1745934641405,-400.0,0.00035616,3]
[359334003,1745934641414,-400.0,0.00035616,3]
[359334005,1745934641423,-400.0,0.00035616,3]
[359334007,1745934641433,-500.0,0.00035616,3]
[359334009,1745934641442,-500.0,0.00035616,3]
[359334011,1745934641452,-991.22,0.00035616,3]
[359334013,1745934641461,-157.76401716,0.00035616,3]
[359334015,1745934641470,-400.0,0.00035616,3]
[359334017,1745934641479,-417.75,0.00035616,3]
[359334019,1745934641490,-176.798497,0.00035616,14]
[359334021,1745934641499,-176.798497,0.00035616,14]
[359334023,1745934641510,-500.0,0.00035616,3]
[359334025,1745934641519,-176.798497,0.00035616,14]
[359334027,1745934641528,-176.798497,0.00035616,14]
[359334029,1745934641538,-176.798497,0.00035616,14]
[359334031,1745934641547,-176.798497,0.00035616,14]
[359334033,1745934641557,-176.798497,0.00035616,14]
[359334035,1745934641567,-176.798497,0.00035616,14]
[359334037,1745934641576,-176.798497,0.00035616,14]
[359334039,1745934641586,-704.85,0.00035616,3]
[359334041,1745934641595,-176.798497,0.00035616,14]
[359334043,1745934641605,-500.0,0.00035616,2]
[359334045,1745934641614,-176.798497,0.00035616,14]
[359334047,1745934641623,-176.798497,0.00035616,14]
[359334049,1745934641632,-176.798497,0.00035616,14]
[359334051,1745934641642,-176.798497,0.00035616,14]
[359334053,1745934641651,-176.798497,0.00035616,14]
[359334055,1745934641661,-176.798497,0.00035616,14]
[359334057,1745934641670,-176.798497,0.00035616,14]
[359334059,1745934641679,-500.0,0.00035616,3]
[359334061,1745934641688,-176.798497,0.00035616,14]
[359334062,1745934641699,-176.798497,0.00035616,14]
[359334064,1745934641708,-500.0,0.00035616,3]
[359334067,1745934641717,-176.798491,0.00035616,14]
[359334068,1745934641727,-400.0,0.00035616,3]
[359334070,1745934641737,-151.0,0.00035616,14]
[359334073,1745934641748,-500.0,0.00035616,3]
[359334074,1745934641758,-400.0,0.00035616,3]
[359334077,1745934641768,-151.0,0.00035616,14]
[359334079,1745934641777,-500.0,0.00035616,3]
[359334081,1745934641786,-151.0,0.00035616,14]
[359334082,1745934641796,-151.0,0.00035616,14]
[359334085,1745934641806,-151.0,0.00035616,14]
[359334087,1745934641815,-151.0,0.00035616,14]
[359334088,1745934641825,-151.0,0.00035616,14]
[359334091,1745934641835,-400.0,0.00035616,3]
[359334092,1745934641844,-151.0,0.00035616,14]
[359334095,1745934641853,-151.0,0.00035616,14]
[359334097,1745934641863,-151.0,0.00035616,14]
[359334098,1745934641872,-151.0,0.00035616,14]
[359334100,1745934641881,-151.0,0.00035616,14]
[359334102,1745934641890,-400.0,0.00035616,3]
[359334104,1745934641900,-151.0,0.00035616,14]
[359334106,1745934641912,-151.0,0.00035616,14]
[359334108,1745934641921,-151.0,0.00035616,14]
[359334110,1745934641930,-151.0,0.00035616,14]
[359334112,1745934641940,-167.549222,0.00035616,14]
[359334114,1745934641950,-500.0,0.00035616,3]
[359334116,1745934641960,-151.0,0.00035616,14]
[359334118,1745934641969,-1047.99,0.00035616,3]
[359334121,1745934641979,-500.0,0.00035616,3]
[359334123,1745934641988,-631.09,0.00035616,3]
[359334124,1745934641997,-404.35,0.00035616,3]
[359334126,1745934642007,-500.0,0.00035616,3]
[359334129,1745934642016,-977.02,0.00035616,3]
[359334130,1745934642025,-977.02,0.00035616,3]
[359334131,1745934642034,-977.02,0.00035616,3]
[359334132,1745934642043,-977.02,0.00035616,3]
[359334133,1745934642051,-977.02,0.00035616,3]
[359334134,1745934642060,-977.02,0.00035616,3]
[359334135,1745934642069,-977.02,0.00035616,3]
[359334136,1745934642078,-977.02,0.00035616,3]
[359334137,1745934642087,-977.02,0.00035616,3]
[359334138,1745934642096,-445.12,0.00035616,3]
[359334139,1745934642106,-500.0,0.00035616,3]
[359334140,1745934642115,-977.02,0.00035616,3]
[359334141,1745934642124,-977.02,0.00035616,3]
[359334142,1745934642134,-977.02,0.00035616,3]
[359334143,1745934642143,-977.02,0.00035616,3]
[359334144,1745934642156,-977.02,0.00035616,3]
[359334145,1745934642165,-504.7994108,0.00035616,3]
[359334146,1745934642175,-977.02,0.00035616,3]
[359334147,1745934642186,-977.02,0.00035616,3]
[359334148,1745934642195,-977.02,0.00035616,3]
[359334149,1745934642204,-977.02,0.00035616,3]
[359334150,1745934642213,-977.02,0.00035616,3]
[359334151,1745934642222,-400.0,0.00035616,3]
[359334152,1745934642231,-977.02,0.00035616,3]
[359334153,1745934642240,-977.02,0.00035616,3]
[359334154,1745934642249,-977.02,0.00035616,3]
[359334156,1745934642260,-977.02,0.00035616,3]
[359334157,1745934642269,-977.14,0.00035616,3]
[359334159,1745934642279,-972.19,0.00035616,3]
[359334161,1745934642288,-500.0,0.00035616,3]
[359334163,1745934642298,-240.90874238,0.00035616,3]
[359334165,1745934642308,-500.0,0.00035616,3]
[359334167,1745934642317,-500.0,0.00035616,3]
[359334169,1745934642327,-538.0,0.00035616,3]
[359334171,1745934642337,-400.0,0.00035616,3]
[359334173,1745934642346,-500.0,0.00035616,3]
[359334175,1745934642356,-1000.0,0.00035616,3]
[359334177,1745934642365,-2257.85,0.00035616,3]
[359334179,1745934642375,-500.0,0.00035616,3]
[359334181,1745934642383,-500.0,0.00035616,3]
[359334183,1745934642393,-151.0,0.00035616,14]
[359334185,1745934642403,-506.15363087,0.00035616,3]
[359334187,1745934642414,-151.0,0.00035616,14]
[359334189,1745934642423,-198.934283,0.00035616,14]
[359334191,1745934642433,-514.08857837,0.00035616,3]
[359334193,1745934642443,-610.68,0.00035616,3]
[359334195,1745934642452,-1401.72,0.00035616,3]
[359334197,1745934642461,-580.224206,0.00035616,14]
[359334199,1745934642470,-501.77666421,0.00035616,3]
[359334203,1745934642480,-580.224206,0.00035616,14]
[359334204,1745934642489,-500.0,0.00035616,3]
[359334207,1745934642498,-580.224206,0.00035616,14]
[359334209,1745934642507,-580.224206,0.00035616,14]
[359334211,1745934642517,-580.224206,0.00035616,14]
[359334213,1745934642526,-580.224206,0.00035616,14]
[359334215,1745934642536,-580.224206,0.00035616,14]
[359334217,1745934642545,-580.224206,0.00035616,14]
[359334219,1745934642555,-580.224206,0.00035616,14]
[359334221,1745934642565,-580.224206,0.00035616,14]
[359334223,1745934642574,-400.0,0.00035616,3]
[359334225,1745934642583,-580.224206,0.00035616,14]
[359334227,1745934642592,-200.1904558,0.00035616,3]
[359334229,1745934642602,-580.224206,0.00035616,14]
[359334231,1745934642611,-580.224206,0.00035616,14]
[359334233,1745934642620,-400.0,0.00035616,3]
[359334235,1745934642629,-400.0,0.00035616,3]
[359334237,1745934642639,-580.224206,0.00035616,14]
[359334239,1745934642648,-580.224206,0.00035616,14]
[359334241,1745934642659,-580.224198,0.00035616,14]
[359334243,1745934642668,-642.85,0.00035616,3]
[359334245,1745934642678,-400.0,0.00035616,3]
[359334247,1745934642687,-500.0,0.00035616,3]